bitfinex/quotes_ETHUSD_20240822
["timestamp","ask_amount","ask_price","bid_price","bid_amount"]
[1724295211977,2.541778,2596.6,2595.9,2.2969]
[1724295212158,0.231068,2596.6,2595.9,2.2969]
[1724295212503,0.231068,2596.6,2595.0,7.1991]
[1724295212504,2.3115,2595.8,2595.0,7.1991]
[1724295212796,0.23115,2595.7,2595.1,2.31197]
[1724295213690,2.31196,2595.2,2594.5,2.4141]
[1724295213892,3.88,2596.2,2594.8,4.785]
[1724295213893,4.78936,2595.9,2594.8,4.785]
[1724295214061,2.31157,2595.7,2595.0,2.31213]
[1724295214259,0.231157,2595.6,2595.1,2.31204]
[1724295214593,2.31144,2595.8,2595.0,2.31213]
[1724295214797,2.31178,2595.4,2594.6,2.31247]
[1724295215025,8.0,2596.2,2594.8,2.31223]
[1724295215026,2.31146,2595.8,2594.8,2.31223]
[1724295215296,1.04178,2596.1,2595.5,2.31162]
[1724295215497,2.31096,2596.4,2595.5,2.31162]
[1724295215677,0.231068,2596.6,2595.5,2.31165]
[1724295215866,2.31108,2596.2,2595.5,2.31165]
[1724295216048,2.31142,2595.8,2595.2,4.785]
[1724295216252,2.31093,2596.4,2594.9,2.4182]
[1724295216448,2.31144,2595.8,2595.0,2.31206]
[1724295216745,2.31205,2595.1,2594.3,2.31275]
[1724295216985,2.31235,2594.8,2594.2,2.4182]
[1724295217302,0.231235,2594.7,2593.9,2.3131]
[1724295217449,2.31274,2594.4,2593.7,2.4182]
[1724295217649,5.31155,2595.7,2593.8,2.4182]
[1724295217867,2.31227,2594.9,2594.1,2.31286]
[1724295218062,2.31227,2594.9,2593.9,7.0981]
[1724295218295,2.31208,2595.1,2594.0,2.31298]
[1724295218296,0.231227,2594.8,2594.0,2.31298]
[1724295218477,6.88,2595.8,2594.4,2.31262]
[1724295218680,2.31152,2595.7,2594.7,2.31239]
[1724295218861,2.31175,2595.5,2594.7,2.31239]
[1724295219071,2.31214,2595.0,2594.3,4.785]
[1724295219296,2.31224,2594.9,2594.0,2.31301]
[1724295219504,2.31224,2594.9,2593.9,4.785]
[1724295219505,0.462438,2594.8,2593.9,4.785]
[1724295219665,2.31251,2594.6,2593.9,4.785]
[1724295220001,0.462438,2594.8,2593.4,2.31356]
[1724295220151,2.774818,2594.8,2593.5,4.785]
[1724295220355,0.2774818,2594.7,2594.1,2.31294]
[1724295220583,0.462438,2594.8,2594.0,2.31301]
[1724295220786,0.462438,2594.8,2593.8,2.31317]
[1724295220993,2.313,2594.1,2593.5,4.785]
[1724295221200,2.31283,2594.3,2593.5,4.785]
[1724295221499,0.231283,2594.2,2593.5,4.785]
[1724295221797,2.31278,2594.3,2593.5,2.31346]
[1724295221998,2.31278,2594.3,2593.6,2.31335]
[1724295222199,0.462438,2594.8,2593.8,4.60375]
[1724295222562,0.462438,2594.8,2593.8,2.2906]
[1724295222808,2.31303,2594.0,2593.3,2.4526]
[1724295222959,2.31329,2593.7,2592.9,2.4526]
[1724295223306,0.231303,2593.9,2592.7,4.785]
[1724295223446,2.31355,2593.5,2592.7,4.785]
[1724295223652,2.31389,2593.1,2592.5,2.4452]
[1724295223952,2.31389,2593.1,2592.4,2.31444]
[1724295224153,2.31392,2593.0,2592.3,4.785]
[1724295224384,2.31402,2592.9,2592.3,4.785]
[1724295224770,2.31413,2592.8,2592.3,4.785]
[1724295224982,2.31402,2592.9,2592.3,4.785]
[1724295225297,0.462781,2593.0,2592.4,2.31437]
[1724295225496,5.31337,2593.7,2592.6,2.31421]
[1724295225497,2.31351,2593.5,2592.6,2.31421]
[1724295225702,2.31313,2593.9,2593.0,2.31391]
[1724295225910,2.31336,2593.7,2593.0,2.31391]
[1724295226053,2.31297,2594.1,2593.0,4.785]
[1724295226257,2.3132,2593.9,2593.2,2.31367]
[1724295226652,2.3132,2593.9,2593.0,7.09889]
[1724295226884,3.315617,2594.0,2592.8,2.31405]
[1724295227087,2.31336,2593.7,2593.0,2.31385]
[1724295227270,2.31304,2594.0,2593.2,2.31372]
[1724295227571,12.8549,2594.4,2592.6,4.785]
[1724295227572,2.31331,2593.7,2593.1,2.31382]
[1724295227752,2.31303,2594.0,2593.3,2.3136]
[1724295228259,1.51385,2594.3,2592.5,4.57453]
[1724295228260,1.51385,2594.3,2593.0,4.785]
[1724295228459,6.22243,2594.7,2593.4,4.785]
[1724295228664,2.3126,2594.5,2593.7,2.31323]
[1724295228857,2.31272,2594.4,2593.7,2.31323]
[1724295229077,2.31272,2594.4,2593.7,4.62646]
[1724295229412,5.15364419,2595.0,2594.5,2.31252]
[1724295229413,0.40117419,2595.0,2594.5,2.31252]
[1724295229575,0.40117419,2595.0,2594.2,4.785]
[1724295229576,0.40117419,2595.0,2594.7,2.31233]
[1724295229771,2.2777,2596.0,2594.7,2.31233]
[1724295229772,2.31153,2595.7,2594.7,2.31233]
[1724295230005,2.31134,2595.9,2594.6,4.785]
[1724295230006,0.40115871,2595.8,2594.6,9.57358]
[1724295230209,2.31193,2595.3,2594.6,7.2611]
[1724295230711,2.3116,2595.6,2594.6,9.57357]
[1724295230866,0.40115871,2595.8,2594.6,9.57357]
[1724295230867,2.31085275,2595.3,2594.6,7.2611]
[1724295231190,2.31211,2595.1,2594.3,2.31274]
[1724295231591,2.31211,2595.1,2594.2,7.2611]
[1724295231793,2.31232,2594.8,2594.2,7.2611]
[1724295231987,2.31218,2595.0,2594.2,9.57393]
[1724295232211,2.774659,2594.9,2594.2,9.57393]
[1724295232420,2.774659,2594.9,2593.9,2.31309]
[1724295232421,2.31237,2594.8,2593.9,2.31309]
[1724295232629,2.31262,2594.5,2593.8,4.785]
[1724295232841,2.31232,2594.8,2593.8,4.785]
[1724295233012,0.2774749,2594.7,2594.1,2.31293]
[1724295233329,0.2774749,2594.7,2594.2,2.31284]
[1724295233531,2.31217,2595.0,2594.3,2.31269]
[1724295233843,2.31198,2595.2,2594.3,2.31269]
[1724295234031,2.31187,2595.3,2594.5,2.31251]
[1724295234683,2.411,2595.3,2593.5,2.4192]
[1724295234916,2.31268,2594.4,2593.6,2.31336]
[1724295235092,0.841847,2595.2,2593.5,2.4192]
[1724295235093,2.31213,2595.1,2593.5,2.4192]
[1724295235311,2.31292,2594.2,2593.3,7.09863]
[1724295235510,2.31305,2594.0,2593.3,7.09863]
[1724295235829,2.31314,2593.9,2592.6,2.4192]
[1724295235986,2.31349,2593.5,2592.6,4.73343]
[1724295236184,2.2616,2593.8,2592.6,2.4192]
[1724295236185,2.31343,2593.6,2592.6,2.4192]
[1724295236472,2.31343,2593.6,2592.8,2.31409]
[1724295236618,0.462674,2593.5,2592.8,2.31409]
[1724295236948,2.775677,2594.0,2593.0,2.31383]
[1724295237252,0.462597,2594.0,2593.0,2.31388]
[1724295237554,2.31295,2594.1,2593.0,2.31388]
[1724295237849,2.31295,2594.1,2593.2,2.31372]
[1724295238047,2.31285,2594.2,2593.1,2.31376]
[1724295238344,2.31285,2594.2,2593.2,2.31373]
[1724295238520,0.231285,2594.1,2593.4,2.31355]
[1724295238701,2.3125,2594.6,2593.8,2.31315]
[1724295238901,2.543197,2595.2,2594.4,2.31265]
[1724295238902,0.231187,2595.2,2594.4,2.31265]
[1724295239152,0.231187,2595.2,2593.9,4.67751]
[1724295239448,2.31216,2595.0,2593.9,4.6775]
[1724295239747,2.4281,2595.6,2594.4,2.31264]
[1724295239950,2.31215,2595.0,2594.2,2.31284]
[1724295240204,2.31196,2595.2,2594.2,2.31284]
[1724295240362,2.31279,2594.3,2593.5,2.3644]
[1724295240510,10.4281,2594.9,2593.5,2.3644]
[1724295240915,2.31294,2594.1,2593.5,2.3644]
[1724295241155,6.19294,2594.1,2593.5,2.3644]
[1724295241363,2.3135,2593.5,2593.1,2.3644]
[1724295241547,2.31331,2593.7,2593.1,2.3644]
[1724295242453,0.619294,2594.0,2592.7,7.1494]
[1724295242616,2.31381,2593.2,2592.7,7.1494]
[1724295242811,2.31358,2593.4,2592.3,7.1494]
[1724295242812,2.31412,2592.8,2592.3,7.1494]
[1724295243151,2.31412,2592.8,2591.9,2.69898]
[1724295243152,2.3143,2592.6,2591.9,4.785]
[1724295243355,2.31455,2592.3,2591.6,2.4433]
[1724295243566,2.31464,2592.2,2591.2,2.31552]
[1724295243875,2.31464,2592.2,2590.6,4.58575]
[1724295243876,2.31537,2591.4,2590.6,4.58575]
[1724295244016,2.31537,2591.4,2590.7,2.31597]
[1724295244212,3.88,2591.5,2590.6,3.206775]
[1724295244474,3.88,2591.5,2591.0,2.31569]
[1724295244765,3.88,2591.5,2590.9,4.785]
[1724295244968,2.3315,2592.8,2591.5,2.2697]
[1724295244969,0.412,2592.7,2591.5,2.2697]
[1724295245172,3.88,2592.6,2592.0,2.3148]
[1724295245333,4.28125634,2592.6,2592.2,2.3146]
[1724295245517,4.28125634,2592.6,2592.0,2.3148]
[1724295245717,4.28125634,2592.6,2591.9,2.31489]
[1724295245718,3.88,2592.6,2591.9,2.31489]
[1724295245973,3.88,2592.6,2591.9,2.31488]
[1724295246155,3.88,2592.6,2592.0,2.31479]
[1724295246356,3.88,2592.6,2592.1,7.09971]
[1724295246654,3.88,2592.6,2592.2,2.31459]
[1724295246851,3.88,2592.6,2592.1,7.09971]
[1724295247400,3.88,2592.6,2592.3,2.31451]
[1724295247663,4.68,2592.6,2592.0,2.31481]
[1724295247833,4.68,2592.6,2592.0,2.31479]
[1724295248031,4.68,2592.6,2591.7,7.10007]
[1724295248231,4.68,2592.6,2591.3,0.3841]
[1724295248232,2.31481,2592.1,2591.3,4.785]
[1724295248641,0.468,2592.5,2590.9,7.1176]
[1724295248642,4.12,2591.8,2590.9,7.1176]
[1724295248850,8.0,2591.8,2590.9,7.1176]
[1724295249051,8.0,2591.8,2590.9,2.3326]
[1724295249258,8.0,2591.8,2590.5,4.785]
[1724295249259,8.0,2591.8,2590.7,2.31596]
[1724295249435,2.31527,2591.5,2590.7,2.31596]
[1724295249741,0.8,2591.7,2590.4,2.3326]
[1724295249742,0.8,2591.7,2590.9,4.785]
[1724295249940,8.0,2591.8,2591.3,4.785]
[1724295250167,3.88,2591.8,2591.2,2.31545]
[1724295250523,2.31518,2591.6,2590.9,2.31579]
[1724295250836,2.31518,2591.6,2590.7,2.31593]
[1724295250837,0.231518,2591.5,2590.7,2.31593]
[1724295251020,0.231518,2591.5,2590.6,4.64863]
[1724295251021,3.88,2591.8,2591.3,2.31536]
[1724295251222,6.19501,2591.8,2591.0,2.3157]
[1724295251499,3.88,2591.8,2591.2,2.31552]
[1724295251641,3.88,2591.8,2591.0,2.3157]
[1724295251856,3.88,2591.8,2591.3,7.10043]
[1724295252163,3.88,2591.8,2591.7,2.31508]
[1724295252571,4.12,2592.2,2592.1,2.31472]
[1724295252772,4.12,2592.2,2591.8,2.31495]
[1724295252978,4.12,2592.2,2591.4,2.3326]
[1724295253275,4.12,2592.2,2591.4,4.64787]
[1724295253472,4.12,2592.2,2591.3,4.785]
[1724295253633,4.12,2592.2,2591.7,2.31505]
[1724295253836,2.31494,2591.9,2591.0,2.3305]
[1724295254031,0.231494,2591.8,2591.3,2.31538]
[1724295254262,2.31475,2592.1,2591.4,2.31531]
[1724295254573,4.12,2592.2,2591.5,2.31525]
[1724295254757,4.12,2592.2,2591.6,2.31512]
[1724295254944,3.88,2592.6,2591.9,2.3398]
[1724295255144,3.88,2592.6,2592.5,2.31436]
[1724295255355,3.88,2592.6,2592.3,2.31454]
[1724295255556,3.88,2592.6,2592.1,7.0997]
[1724295255972,3.88,2592.6,2592.4,2.31443]
[1724295256273,3.88,2592.6,2592.1,7.0997]
[1724295256589,3.88,2592.6,2591.9,4.65466]
[1724295256590,2.31444,2592.5,2591.6,2.31516]
[1724295256795,6.7256,2592.6,2591.4,7.10029]
[1724295256796,2.3147,2592.2,2591.4,7.10029]
[1724295256964,0.23147,2592.1,2591.4,2.31529]
[1724295257161,2.31515,2591.7,2591.0,7.10063]
[1724295257493,2.31515,2591.7,2590.8,2.31586]
[1724295257494,2.31532,2591.5,2590.8,2.31586]
[1724295257701,3.16636,2591.5,2590.6,9.52473]
[1724295257858,0.85104,2591.5,2590.4,2.31621]
[1724295258065,2.31569,2591.1,2590.2,9.35288]
[1724295258244,6.19588,2590.9,2590.0,2.31658]
[1724295258447,6.19588,2590.9,2589.8,2.32016]
[1724295258448,2.31615,2590.5,2589.8,4.63691]
[1724295258692,0.619588,2590.8,2589.8,0.06866]
[1724295258848,2.31604,2590.7,2589.8,0.06866]
[1724295259188,2.31604,2590.7,2589.9,2.31665]
[1724295259396,2.6096228,2590.6,2589.9,2.31665]
[1724295259548,2.6096228,2590.6,2589.9,2.31663]
[1724295259549,0.2935628,2590.6,2589.9,2.31663]
[1724295259748,0.2935628,2590.6,2590.0,2.31655]
[1724295259966,0.2935628,2590.6,2589.8,0.06866]
[1724295260204,2.31647,2590.2,2589.8,0.06866]
[1724295260395,0.231647,2590.2,2589.8,0.06866]
[1724295260554,2.31624,2590.4,2589.8,0.06866]
[1724295260950,2.31633,2590.3,2589.8,0.06866]
[1724295261249,2.31624,2590.4,2589.8,0.06866]
[1724295261530,4.4135628,2590.6,2590.0,2.31656]
[1724295261652,4.4135628,2590.6,2589.9,2.31666]
[1724295262164,4.12,2590.6,2589.8,0.06866]
[1724295262394,4.12,2590.6,2590.4,2.31621]
[1724295263590,3.88,2590.9,2590.6,2.31598]
[1724295263794,3.88,2590.9,2590.7,2.31595]
[1724295264154,3.88,2590.9,2590.1,2.3165]
[1724295264499,3.88,2590.9,2589.9,2.31661]
[1724295264500,2.31598,2590.7,2589.9,2.31661]
[1724295264658,2.31598,2590.7,2589.8,2.38535]
[1724295264659,2.31598,2590.7,2590.0,2.31657]
[1724295264860,3.176638,2590.7,2590.0,2.31657]
[1724295266084,0.860658,2590.7,2590.0,2.31657]
[1724295266269,3.88,2590.9,2590.0,4.785]
[1724295266466,3.88,2590.9,2590.0,7.10156]
[1724295266710,3.88,2590.9,2590.2,2.31636]
[1724295267039,3.88,2590.9,2590.0,7.10156]
[1724295267040,0.619572,2590.8,2590.4,2.31616]
[1724295267244,3.88,2590.9,2590.1,2.2846]
[1724295267429,3.88,2590.9,2590.4,2.31617]
[1724295267930,3.88,2590.9,2590.6,2.31603]
[1724295268130,4.12,2591.2,2591.1,2.31561]
[1724295268332,2.71618002,2592.0,2591.5,2.31523]
[1724295268333,3.88,2591.7,2591.5,2.31523]
[1724295268533,3.88,2591.7,2591.4,2.31527]
[1724295268847,3.88,2591.7,2591.1,2.31553]
[1724295269147,2.93468,2591.6,2590.7,2.31593]
[1724295269364,4.72594,2591.5,2590.1,4.785]
[1724295269499,4.72594,2591.5,2590.7,2.31591]
[1724295269707,0.6195,2591.6,2590.7,2.31591]
[1724295270054,3.88,2591.7,2589.8,0.06866]
[1724295270217,2.3155,2591.3,2590.5,2.31615]
[1724295270416,2.3153,2591.5,2590.2,4.785]
[1724295270728,2.31535,2591.4,2590.7,2.31589]
[1724295270927,2.31553,2591.2,2590.5,2.31611]
[1724295271348,2.778618,2591.2,2590.5,2.31611]
[1724295271550,2.31535,2591.4,2590.5,2.31611]
[1724295271772,2.31535,2591.4,2590.7,2.31596]
[1724295272161,2.31556,2591.2,2590.2,7.10141]
[1724295272364,0.231556,2591.1,2590.2,7.10141]
[1724295272565,2.31537,2591.4,2590.7,2.31595]
[1724295273048,3.88,2591.7,2590.7,2.31594]
[1724295273378,3.88,2591.7,2590.6,4.785]
[1724295273379,3.88,2591.7,2591.1,2.31554]
[1724295273527,3.88,2591.7,2591.1,2.31556]
[1724295273729,3.88,2591.7,2591.1,2.2936]
[1724295274686,3.88,2591.7,2591.2,2.31552]
[1724295274887,3.88,2591.7,2591.3,2.31542]
[1724295275686,3.88,2591.7,2591.2,2.31552]
[1724295276228,3.88,2591.7,2591.3,2.31543]
[1724295276480,0.40135777,2592.5,2591.5,2.3951]
[1724295276708,0.40135777,2592.5,2592.4,2.31445]
[1724295276833,0.40135777,2592.5,2592.1,2.31468]
[1724295277037,3.88,2592.8,2592.4,7.09945]
[1724295277236,3.88,2592.8,2592.6,2.31424]
[1724295277439,3.88,2592.8,2592.4,4.785]
[1724295277745,5.06489284,2593.7,2593.0,2.31387]
[1724295277992,6.2301,2593.7,2593.1,2.31382]
[1724295278148,3.88,2593.7,2593.3,2.31362]
[1724295278500,3.88,2593.7,2593.1,2.31383]
[1724295278501,4.268,2593.7,2593.1,2.31383]
[1724295278831,4.268,2593.7,2592.9,2.31397]
[1724295279264,4.268,2593.7,2593.1,2.31377]
[1724295279806,6.5813,2593.7,2593.1,2.31377]
[1724295280085,0.65813,2593.6,2593.1,2.31377]
[1724295280234,0.65813,2593.6,2593.2,2.31374]
[1724295280634,3.88,2593.7,2593.3,2.31362]
[1724295281048,3.88,2593.7,2593.6,2.31338]
[1724295281353,2.31262,2594.5,2593.8,2.31313]
[1724295281558,2.31268,2594.4,2593.6,4.785]
[1724295281806,2.31283,2594.3,2593.6,4.785]
[1724295282009,2.31283,2594.3,2593.6,7.09838]
[1724295282193,2.31285,2594.2,2593.6,4.785]
[1724295282872,2.543942,2594.4,2593.6,7.09838]
[1724295283131,0.6423942,2594.3,2593.6,7.09838]
[1724295283273,2.31285,2594.2,2593.6,7.09838]
[1724295283476,0.6423942,2594.3,2593.6,7.09838]
[1724295283477,0.6423942,2594.3,2593.7,2.31328]
[1724295283678,0.6423942,2594.3,2593.8,2.31315]
[1724295284018,6.19263,2594.5,2593.8,2.31315]
[1724295284019,3.88,2594.5,2593.8,2.31313]
[1724295284264,2.313,2594.1,2593.4,2.31355]
[1724295284395,2.31291,2594.2,2593.5,2.31347]
[1724295284775,2.31274,2594.4,2593.6,2.31337]
[1724295284979,0.619274,2594.3,2593.6,2.31331]
[1724295285706,0.619274,2594.3,2593.7,2.31328]
[1724295287894,3.88,2594.5,2593.9,7.09804]
[1724295288091,2.31268,2594.4,2593.9,4.785]
[1724295290542,3.88,2594.5,2594.2,2.31278]
[1724295290724,3.88,2594.5,2593.9,7.1815]
[1724295290725,3.88,2594.5,2594.4,2.31267]
[1724295291682,3.88,2594.5,2594.3,4.785]
[1724295291819,3.88,2594.5,2594.3,9.41037]
[1724295292021,2.31199,2595.2,2594.5,2.3125]
[1724295292225,2.31199,2595.2,2594.4,2.3958]
[1724295292226,2.31215,2595.0,2594.4,2.3958]
[1724295292478,2.31199,2595.2,2594.4,2.3958]
[1724295292635,2.31199,2595.2,2594.5,2.31252]
[1724295293346,2.31199,2595.2,2594.5,4.62504]
[1724295293676,2.774369,2595.2,2594.5,4.62504]
[1724295293840,0.462379,2595.2,2594.5,2.31253]
[1724295294031,0.462379,2595.2,2594.3,9.41039]
[1724295294375,0.462379,2595.2,2593.9,2.31309]
[1724295294376,2.31259,2594.5,2593.9,7.09807]
[1724295294676,2.31259,2594.5,2593.3,2.31364]
[1724295294677,2.31303,2594.0,2593.5,4.785]
[1724295295064,2.31287,2594.2,2593.5,7.09846]
[1724295295390,2.4423,2594.4,2593.3,2.31364]
[1724295295391,2.31319,2593.9,2593.3,2.31364]
[1724295295772,2.31323,2593.8,2593.1,7.09882]
[1724295295931,2.31319,2593.9,2593.1,7.09882]
[1724295296126,2.544247,2594.1,2593.1,7.09882]
[1724295296127,0.231287,2594.1,2593.5,2.31339]
[1724295296379,0.231287,2594.1,2593.4,2.31349]
[1724295296577,2.31319,2593.9,2593.2,2.3137]
[1724295296782,2.31271,2594.4,2593.5,4.785]
[1724295297032,2.31271,2594.4,2593.6,2.31337]
[1724295297236,0.231271,2594.3,2593.9,2.31305]
[1724295297434,0.231271,2594.3,2593.8,2.3132]
[1724295297435,2.31249,2594.6,2593.8,2.31314]
[1724295297638,2.31249,2594.6,2593.8,2.31317]
[1724295297639,2.31273,2594.4,2593.8,2.31317]
[1724295297807,2.31255,2594.6,2593.8,2.31314]
[1724295298010,2.31255,2594.6,2594.0,2.31296]
[1724295298222,4.59338,2595.6,2594.4,2.31258]
[1724295298410,2.2817,2595.6,2594.3,4.785]
[1724295298609,4.59402,2594.8,2593.9,7.09805]
[1724295298954,0.40131324,2595.9,2594.2,2.31279]
[1724295298955,2.31216,2595.0,2594.2,2.31279]
[1724295299094,2.31216,2595.0,2594.4,2.31266]
[1724295299299,2.31198,2595.2,2594.5,2.31258]
[1724295299635,2.31205,2595.1,2594.5,2.31258]
[1724295299793,2.31205,2595.1,2594.4,2.31266]
[1724295299794,2.31215,2595.0,2594.4,2.31266]
[1724295300127,2.31205,2595.1,2594.4,2.31266]
[1724295300311,2.31205,2595.1,2594.5,2.31251]
[1724295300517,0.388,2594.7,2593.9,4.785]
[1724295300715,2.31302,2594.1,2593.5,4.785]
[1724295300899,2.31317,2593.9,2593.2,4.6011]
[1724295301099,2.31317,2593.9,2593.1,4.785]
[1724295301361,2.31331,2593.7,2593.1,4.785]
[1724295301542,2.31331,2593.7,2593.1,7.09882]
[1724295301867,2.31317,2593.9,2593.2,2.31371]
[1724295302152,3.88,2594.1,2593.6,2.31331]
[1724295302950,3.88,2594.1,2593.2,2.31367]
[1724295302951,2.31324,2593.8,2593.2,2.31367]
[1724295303097,3.88,2594.1,2593.1,4.785]
[1724295303301,3.88,2594.1,2593.5,4.785]
[1724295303656,3.88,2594.1,2593.8,2.31315]
[1724295304000,3.88,2594.1,2594.0,2.31303]
[1724295304851,2.31234,2594.8,2594.2,2.31279]
[1724295305059,2.31218,2595.0,2594.3,4.785]
[1724295305352,2.31218,2595.0,2594.4,2.31261]
[1724295305514,3.88,2595.1,2594.5,0.07708441]
[1724295305720,3.88,2595.1,2594.4,2.31261]
[1724295306031,3.88,2595.1,2594.6,2.31243]
[1724295306236,3.88,2595.1,2594.4,2.3126]
[1724295306567,3.88,2595.1,2594.3,7.1177]
[1724295306568,2.3122,2595.0,2594.3,7.1177]
[1724295306705,4.268,2595.1,2594.4,2.31266]
[1724295306902,4.268,2595.1,2594.3,4.785]
[1724295306903,2.31219,2595.0,2594.3,4.785]
[1724295307103,2.31233,2594.8,2594.3,4.785]
[1724295307303,2.31261,2594.5,2593.9,4.785]
[1724295307508,2.31228,2594.9,2594.2,2.31278]
[1724295307768,2.31228,2594.9,2594.3,2.3127]
[1724295307769,2.970308,2594.9,2594.3,2.3127]
[1724295307942,2.3124,2594.7,2594.0,4.62596]
[1724295308108,2.3124,2594.7,2594.1,2.3129]
[1724295308313,2.31234,2594.8,2594.1,2.3129]
[1724295308513,2.31245,2594.7,2594.0,4.62595]
[1724295308756,0.5282818,2594.7,2593.9,4.785]
[1724295308970,0.658028,2594.9,2593.9,4.785]
[1724295308971,2.31256,2594.6,2593.9,4.785]
[1724295309105,3.88,2595.1,2594.1,2.3327]
[1724295309309,3.88,2595.1,2595.0,2.31213]
[1724295309524,3.88,2595.1,2594.8,2.31224]
[1724295310264,3.88,2595.1,2595.0,4.62426]
[1724295310408,5.09381966,2596.1,2595.4,4.62346]
[1724295310615,2.31119,2596.1,2595.5,4.785]
[1724295311007,2.31119,2596.1,2595.4,2.3117]
[1724295311008,2.31109,2596.2,2595.9,4.785]
[1724295311315,3.88,2596.3,2596.0,2.31123]
[1724295311646,3.88,2596.3,2596.2,2.31107]
[1724295311865,3.88,2596.3,2596.2,4.62214]
[1724295312095,4.69898,2597.1,2596.2,2.31107]
[1724295312096,2.3887,2597.1,2596.2,2.31107]
[1724295312318,2.31052,2596.9,2596.2,2.31107]
[1724295312593,6.2687,2597.1,2596.4,2.31087]
[1724295312795,3.88,2597.1,2596.5,2.31073]
[1724295312945,3.88,2597.1,2596.4,2.31087]
[1724295312946,6.19028,2597.1,2596.4,2.31087]
[1724295313299,2.31052,2596.9,2596.3,4.785]
[1724295313448,2.31053,2596.8,2596.3,4.785]
[1724295313654,0.619052,2596.9,2596.3,7.09597]
[1724295314190,3.88,2597.1,2596.5,2.31079]
[1724295314572,2.31036,2597.0,2596.3,7.0793]
[1724295314758,3.88,2597.1,2596.3,9.39022]
[1724295315145,2.31044,2596.9,2596.3,4.785]
[1724295315346,3.88,2597.1,2596.5,2.31079]
[1724295315556,3.88,2597.1,2596.7,2.31061]
[1724295316173,3.88,2597.1,2596.7,7.09559]
[1724295316371,3.88,2597.1,2597.0,2.31035]
[1724295316620,2.31042,2597.0,2596.4,4.785]
[1724295317206,3.88,2597.1,2596.4,4.785]
[1724295317391,3.88,2597.1,2596.6,2.31064]
[1724295317575,3.88,2597.1,2596.7,2.31055]
[1724295317920,2.31036,2597.0,2596.4,4.785]
[1724295318121,3.88,2597.1,2596.4,4.785]
[1724295318324,3.88,2597.1,2596.5,2.31074]
[1724295318623,3.88,2597.1,2596.7,2.31062]
[1724295318805,3.88,2597.1,2596.8,2.31047]
[1724295318992,3.88,2597.1,2596.7,2.31062]
[1724295319197,2.31002,2597.4,2596.8,4.785]
[1724295319816,2.3654226,2597.6,2596.8,7.09551]
[1724295320017,2.31007,2597.4,2596.8,4.785]
[1724295320228,2.3654726,2597.6,2596.8,7.09545]
[1724295320425,0.0555926,2597.6,2597.1,2.3102]
[1724295320720,0.0555926,2597.6,2597.0,2.31028]
[1724295320918,0.0555926,2597.6,2597.1,2.31026]
[1724295321123,0.0555926,2597.6,2597.0,2.31032]
[1724295321424,0.0555926,2597.6,2597.5,2.30991]
[1724295321594,0.0555926,2597.6,2597.4,2.31]
[1724295321796,0.0555926,2597.6,2597.5,2.30991]
[1724295322120,0.0555926,2597.6,2597.5,4.74071]
[1724295322534,0.0555926,2597.6,2597.5,7.05062]
[1724295322726,0.0555926,2597.6,2597.5,10.296585]
[1724295322892,0.0555926,2597.6,2597.5,10.846585]
[1724295323097,0.0555926,2597.6,2597.5,8.536675]
[1724295323303,0.00446788,2597.6,2597.5,7.986675]
[1724295323477,0.00446788,2597.6,2597.5,4.74071]
[1724295323682,0.00446788,2597.6,2597.5,2.30991]
[1724295324343,0.00446788,2597.6,2597.5,4.61982]
[1724295324681,0.00446788,2597.6,2597.4,4.785]
[1724295325086,0.00446788,2597.6,2597.0,4.785]
[1724295325633,0.00446788,2597.6,2597.1,2.31025]
[1724295326347,0.00446788,2597.6,2597.0,5.494542]
[1724295326689,0.00446788,2597.6,2597.4,2.30999]
[1724295326891,0.00446788,2597.6,2597.5,2.30991]
[1724295327184,0.00446788,2597.6,2597.1,2.31023]
[1724295327425,0.00446788,2597.6,2597.1,0.7804772]
[1724295327643,0.00446788,2597.6,2596.7,2.3805]
[1724295327644,2.3101,2597.3,2596.7,4.6911]
[1724295327821,2.3101,2597.3,2596.7,2.3106]
[1724295328133,0.00446788,2597.6,2597.1,2.3102]
[1724295328344,0.00446788,2597.6,2596.7,2.31058]
[1724295328647,0.00446788,2597.6,2595.6,2.3116]
[1724295328648,2.31064,2596.7,2596.2,4.785]
[1724295328784,2.31126,2596.0,2595.4,2.31175]
[1724295329246,2.3114,2595.9,2595.1,7.09702]
[1724295329383,4.12,2596.3,2595.1,4.785]
[1724295329384,2.3113,2596.0,2595.1,4.785]
[1724295329701,2.3113,2596.0,2595.3,2.31181]
[1724295329901,2.31109,2596.2,2595.4,2.31176]
[1724295330095,2.31109,2596.2,2595.6,2.31156]
[1724295330297,2.3112,2596.1,2595.4,2.31176]
[1724295330530,2.31109,2596.2,2595.4,2.31176]
[1724295330727,2.31109,2596.2,2595.2,0.4785]
[1724295330728,4.12,2596.3,2595.6,2.31156]
[1724295330930,4.12,2596.3,2595.2,0.4785]
[1724295330931,3.88,2596.7,2596.0,2.31122]
[1724295331100,3.88,2596.7,2595.8,2.3114]
[1724295331304,3.88,2596.7,2595.5,4.785]
[1724295331531,3.88,2596.7,2596.4,2.31087]